bitfinex-derivatives/quotes_BTCF0:USTF0_20251216
["timestamp","ask_amount","ask_price","bid_price","bid_amount"]
[1765847962817,0.0714921,85979.0,85978.0,0.05958619]
[1765847963012,0.0714921,85979.0,85978.0,0.03072619]
[1765847963418,0.0714921,85979.0,85978.0,0.00232619]
[1765847965216,0.07158045,85979.0,85978.0,9e-08]
[1765847966423,0.0694943,85963.0,85962.0,0.0284]
[1765847966621,0.4302943,85963.0,85962.0,0.0284]
[1765847967317,0.07114,85962.0,85961.0,0.0382977]
[1765847967508,0.07014,85962.0,85961.0,0.0098977]
[1765847967709,0.07491,85956.0,85955.0,5e-08]
[1765847968015,0.0694964,85947.0,85946.0,0.05726]
[1765847968417,0.0116364,85947.0,85946.0,0.06900801]
[1765847968621,0.41866,85967.0,85966.0,0.05726]
[1765847968921,0.4187731,85967.0,85966.0,0.05726]
[1765847969310,0.0694944,85962.0,85961.0,0.05826]
[1765847969513,0.0116344,85962.0,85961.0,0.05826]
[1765847969913,0.0405944,85962.0,85961.0,0.05726]
[1765847970110,0.0694956,85953.0,85952.0,0.3892]
[1765847970309,0.4473456,85953.0,85952.0,0.0284]
[1765847970619,0.4473456,85953.0,85952.0,0.05726]
[1765847971126,0.4473456,85953.0,85952.0,0.0284]
[1765847971824,0.4493456,85953.0,85952.0,0.0284]
[1765847972118,0.4493456,85953.0,85952.0,0.05726]
[1765847972722,0.4342956,85953.0,85952.0,0.05726]
[1765847973825,0.4322956,85953.0,85952.0,0.05726]
[1765847974026,0.4332956,85953.0,85952.0,0.05726]
[1765847975323,0.4312956,85953.0,85952.0,0.05726]
[1765847975726,0.4322956,85953.0,85952.0,0.05726]
[1765847980026,0.3744356,85953.0,85952.0,0.05726]
[1765847980235,0.0136356,85953.0,85952.0,0.05726]
[1765847980735,0.0413256,85953.0,85952.0,0.05726]
[1765847981029,0.0696456,85953.0,85952.0,0.05726]
[1765847981330,0.0136356,85953.0,85952.0,0.05726]
[1765847981640,0.001,85953.0,85952.0,0.05726]
[1765847981936,0.23478962,85962.0,85961.0,0.0578]
[1765847982124,0.05601,85962.0,85961.0,0.0578]
[1765847982449,0.0676444,85962.0,85961.0,0.0578]
[1765847983735,0.0686444,85962.0,85961.0,0.0578]
[1765847984426,0.0866144,85962.0,85961.0,0.02805]
[1765847984622,0.0866144,85962.0,85950.0,0.02805]
[1765847984623,0.0676459,85951.0,85950.0,0.02805]
[1765847984935,0.0676464,85947.0,85946.0,0.03964156]
[1765847985435,0.0676464,85947.0,85946.0,0.02805]
[1765847986523,0.05601,85940.0,85939.0,0.08349767]
[1765847986731,0.05601,85940.0,85938.0,0.00232727]
[1765847986732,0.0819075,85939.0,85938.0,0.00232727]
[1765847987124,0.0809075,85939.0,85938.0,0.00232727]
[1765847987724,0.0809075,85939.0,85938.0,7e-08]
[1765847988724,0.0809075,85939.0,85938.0,0.00100007]
[1765847989523,0.0809075,85939.0,85938.0,0.02805007]
[1765847989837,0.0666475,85939.0,85938.0,0.05780007]
[1765847990745,0.0116375,85939.0,85938.0,0.05780007]
[1765847991035,0.0676475,85939.0,85938.0,0.05780007]
[1765847996231,0.0296075,85939.0,85938.0,7e-08]
[1765847996626,0.0116375,85939.0,85938.0,7e-08]
[1765847996832,0.0676475,85939.0,85938.0,0.05780007]
[1765847998030,0.0856175,85939.0,85938.0,0.05780007]
[1765847998233,0.0676475,85939.0,85938.0,0.05780007]
[1765847999441,0.0116375,85939.0,85938.0,0.05780007]
[1765847999640,0.0676475,85939.0,85938.0,0.05780007]
[1765848001937,0.0116375,85939.0,85938.0,0.05780007]
[1765848002235,0.011753,85947.0,85946.0,0.07332]
[1765848002236,0.0001166,85947.0,85946.0,0.07332]
[1765848002442,0.011753,85947.0,85946.0,0.07332]
[1765848003641,0.013753,85947.0,85946.0,0.07332]
[1765848003843,0.014753,85947.0,85946.0,0.07332]
[1765848004230,0.071483,85947.0,85946.0,0.07332]
[1765848004439,0.014753,85947.0,85946.0,0.07465]
[1765848005733,0.014753,85947.0,85946.0,0.0862866]
[1765848006041,0.014753,85947.0,85946.0,0.07465]
[1765848007134,0.042853,85947.0,85946.0,0.07465]
[1765848007340,0.071483,85947.0,85946.0,0.07465]
[1765848008741,0.042853,85947.0,85946.0,0.07465]
[1765848009242,0.071483,85947.0,85946.0,0.07465]
[1765848011445,0.0031166,85947.0,85946.0,0.15814767]
[1765848011632,0.3724343,85963.0,85962.0,0.05755]
[1765848011833,0.0116343,85963.0,85962.0,0.05755]
[1765848012132,0.0116338,85967.0,85966.0,0.05755]
[1765848012333,0.0683638,85967.0,85966.0,0.05755]
[1765848012532,0.06844544,85967.0,85966.0,0.05755]
[1765848013942,0.07244544,85967.0,85966.0,0.05755]
[1765848014139,0.07544544,85967.0,85966.0,0.05755]
[1765848015447,0.07344544,85967.0,85966.0,0.05755]
[1765848015949,0.07144544,85967.0,85966.0,0.05755]
[1765848016145,0.07044544,85967.0,85966.0,0.05755]
[1765848017744,0.06944544,85967.0,85966.0,0.05755]
[1765848017950,0.06944544,85967.0,85960.0,0.01701]
[1765848017951,0.0683645,85961.0,85960.0,0.05755]
[1765848018651,0.05673,85959.0,85958.0,0.00017454]
[1765848019435,0.0683664,85947.0,85946.0,0.05755]
[1765848020043,0.0683664,85947.0,85946.0,0.07465]
[1765848021650,0.0693664,85947.0,85946.0,0.07465]
[1765848021954,0.0693664,85947.0,85946.0,0.02841]
[1765848022150,0.0683664,85947.0,85946.0,0.05755]
[1765848022352,0.0713664,85947.0,85946.0,0.05755]
[1765848022744,0.0703664,85947.0,85946.0,0.05755]
[1765848023053,0.0693664,85947.0,85946.0,0.05755]
[1765848023246,0.0713664,85947.0,85946.0,0.05755]
[1765848025754,0.0683674,85940.0,85939.0,0.15685251]
[1765848025945,0.06845479,85940.0,85939.0,0.15685251]
[1765848026452,0.42925479,85940.0,85939.0,0.07332]
[1765848026750,0.42925479,85940.0,85939.0,0.05755]
[1765848026944,0.43025479,85940.0,85939.0,0.05755]
[1765848031558,0.37352479,85940.0,85938.0,7e-08]
[1765848031853,0.0699582,85934.0,85933.0,0.11307836]
[1765848032155,0.0699582,85934.0,85933.0,0.02952]
[1765848032355,0.0699582,85934.0,85929.0,0.08355836]
[1765848032356,0.0695286,85931.0,85929.0,0.08355836]
[1765848032557,0.05789,85928.0,85927.0,0.14190836]
[1765848032754,0.05789,85926.0,85925.0,0.00010909]
[1765848033840,0.0695301,85920.0,85919.0,0.04040135]
[1765848034042,0.0695301,85920.0,85919.0,0.07015135]
[1765848034655,0.05789,85916.0,85915.0,0.08355836]
[1765848034970,0.0695312,85912.0,85909.0,0.09554648]
[1765848035155,0.05789,85910.0,85909.0,0.0286]
[1765848035350,0.05789,85910.0,85909.0,0.05835]
[1765848035856,0.0116412,85912.0,85911.0,0.07615]
[1765848036356,0.0405512,85912.0,85911.0,0.07615]
[1765848037056,0.0116412,85912.0,85911.0,0.07615]
[1765848037447,0.0116412,85912.0,85911.0,0.07715]
[1765848039458,0.0695312,85912.0,85911.0,0.07715]
[1765848040847,0.0405512,85912.0,85911.0,0.0887913]
[1765848041261,9.432e-05,85916.0,85915.0,0.0699908]
[1765848041552,4.32e-06,85916.0,85915.0,0.4307908]
[1765848042256,0.3608,85931.0,85930.0,0.05835]
[1765848043357,0.36090216,85931.0,85930.0,0.05835]
[1765848044059,0.36390216,85931.0,85930.0,0.05835]
[1765848044259,0.36590216,85931.0,85930.0,0.05835]
[1765848044960,0.36390216,85931.0,85930.0,0.05835]
[1765848045163,0.36190216,85931.0,85930.0,0.05935]
[1765848045361,0.00110216,85931.0,85930.0,0.05935]
[1765848045761,0.00110216,85931.0,85930.0,0.42015]
[1765848046951,0.00110216,85931.0,85930.0,0.41915]
[1765848047661,0.00110216,85931.0,85930.0,0.42015]
[1765848047867,0.00010216,85931.0,85930.0,0.42015]
[1765848048053,0.00110216,85931.0,85930.0,0.42015]
[1765848048254,0.00110216,85931.0,85930.0,0.41915]
[1765848049858,0.03001216,85931.0,85930.0,0.41915]
[1765848050054,0.03001216,85931.0,85930.0,0.05835]
[1765848050259,0.00110216,85931.0,85930.0,0.05835]
[1765848050462,0.00010216,85931.0,85930.0,0.05835]
[1765848051355,0.00110216,85931.0,85930.0,0.05835]
[1765848051756,0.00010216,85931.0,85930.0,0.05835]
[1765848052053,0.00010216,85931.0,85930.0,0.05935]
[1765848053957,0.00017454,85939.0,85929.0,0.3724388]
[1765848053958,0.00017454,85939.0,85938.0,0.0699876]
[1765848054161,0.00017454,85939.0,85938.0,0.4307876]
[1765848055267,0.00017454,85939.0,85938.0,0.4317876]
[1765848055865,0.00017454,85939.0,85938.0,0.53623201]
[1765848056062,0.0695257,85953.0,85952.0,0.0699857]
[1765848056665,0.0695257,85953.0,85952.0,0.05835]
[1765848057667,0.0705257,85953.0,85952.0,0.05835]
[1765848057966,0.0715257,85953.0,85952.0,0.05835]
[1765848058557,0.0705257,85953.0,85952.0,0.05835]
[1765848058762,0.0715257,85953.0,85952.0,0.05835]
[1765848059371,0.002,85953.0,85952.0,0.05835]
[1765848059571,0.03091,85953.0,85952.0,0.05835]
[1765848059868,0.0425456,85953.0,85952.0,0.05835]
[1765848060067,0.0705256,85953.0,85952.0,0.05835]
[1765848060269,0.0715256,85953.0,85952.0,0.05835]
[1765848062969,0.002,85953.0,85952.0,0.05835]
[1765848063369,0.00017454,85961.0,85960.0,0.07264]
[1765848063669,0.02959454,85961.0,85960.0,0.07264]
[1765848063972,0.0682956,85953.0,85952.0,0.05566]
[1765848064170,0.0702956,85953.0,85952.0,0.78338]
[1765848064362,0.0702956,85953.0,85952.0,0.05666]
[1765848064758,0.0682956,85953.0,85952.0,0.05666]
[1765848064961,0.0682956,85953.0,85952.0,0.05566]
[1765848065158,0.0692956,85953.0,85952.0,0.05566]
[1765848065362,0.0712956,85953.0,85952.0,0.05566]
[1765848066463,0.0702956,85953.0,85952.0,0.05566]
[1765848066663,0.0722956,85953.0,85952.0,0.05566]
[1765848066866,0.0702956,85953.0,85952.0,0.05566]
[1765848067175,0.0722956,85953.0,85952.0,0.05566]
[1765848067372,0.0712956,85953.0,85952.0,0.05566]
[1765848067869,0.0702956,85953.0,85952.0,0.05566]
[1765848068169,0.0692956,85953.0,85952.0,0.05566]
[1765848068577,0.0702956,85953.0,85952.0,0.05566]
[1765848069672,0.0692956,85953.0,85952.0,0.05566]
[1765848069974,0.0702956,85953.0,85952.0,0.0672957]
[1765848070561,0.0692956,85953.0,85952.0,0.0672957]
[1765848070766,0.0702956,85953.0,85952.0,0.0672957]
[1765848071177,0.0692956,85953.0,85952.0,0.0672957]
[1765848071368,0.002,85953.0,85952.0,0.0672957]
[1765848071570,0.00017454,85961.0,85960.0,0.0672947]
[1765848071880,0.05666,85977.0,85976.0,0.05566]
[1765848072273,0.0682924,85977.0,85976.0,0.05566]
[1765848072488,0.068293,85972.0,85970.0,0.08349897]
[1765848072677,0.41746,85971.0,85970.0,0.83892897]
[1765848073068,0.41746,85971.0,85970.0,0.86679897]
[1765848073268,0.41746,85971.0,85970.0,0.7833]
[1765848073572,0.05766,85977.0,85976.0,0.05566]
[1765848074270,0.05666,85977.0,85976.0,0.05566]
[1765848074980,0.05766,85977.0,85976.0,0.05566]
[1765848075972,0.05866,85977.0,85976.0,0.05566]
[1765848077064,0.05766,85977.0,85976.0,0.05566]
[1765848077272,0.05966,85977.0,85976.0,0.05566]
[1765848078278,0.05766,85977.0,85976.0,0.05566]
[1765848078478,0.05966,85977.0,85976.0,0.05566]
[1765848078872,0.05866,85977.0,85976.0,0.05566]
[1765848079073,0.05966,85977.0,85976.0,0.05566]
[1765848081086,0.05766,85977.0,85976.0,0.05566]
[1765848081384,0.05866,85977.0,85976.0,0.05566]
[1765848081784,0.05766,85977.0,85976.0,0.05566]
[1765848081977,0.05866,85977.0,85976.0,0.05566]
[1765848082281,0.05766,85977.0,85976.0,0.05566]
[1765848082481,0.05866,85977.0,85976.0,0.05566]
[1765848083187,0.05766,85977.0,85976.0,0.05566]
[1765848083485,0.05866,85977.0,85976.0,0.05566]
[1765848084086,0.05966,85977.0,85976.0,0.05566]
[1765848084480,0.05866,85977.0,85976.0,0.05566]
[1765848084682,0.06066,85977.0,85976.0,0.05566]
[1765848085580,0.05966,85977.0,85976.0,0.05566]
[1765848086385,0.05766,85977.0,85976.0,0.05566]
[1765848086586,0.05866,85977.0,85976.0,0.05566]
[1765848087089,0.002,85977.0,85976.0,0.05566]
[1765848087286,0.002,85977.0,85976.0,0.13915897]
[1765848087498,0.001,85977.0,85976.0,0.13915897]
[1765848087691,0.00232619,85978.0,85977.0,0.0672924]
[1765848089591,0.06,85989.0,85988.0,0.0672909]
[1765848089792,0.06,85989.0,85988.0,1.1556109]
[1765848090996,0.063,85989.0,85988.0,1.1556109]
[1765848091289,0.063,85989.0,85988.0,1.23901011]
[1765848091491,0.063,85989.0,85988.0,1.1556109]
[1765848092289,0.065,85989.0,85988.0,1.1556109]
[1765848094895,0.09442,85989.0,85988.0,1.1556109]
[1765848095501,0.065,85989.0,85988.0,1.1556109]
[1765848095688,0.12283,85989.0,85988.0,1.1556109]
[1765848095894,0.065,85989.0,85988.0,1.23900847]
[1765848096096,0.065,85989.0,85988.0,1.1556109]
[1765848096289,0.12283,85989.0,85988.0,1.1556109]
[1765848096490,0.12283,85989.0,85988.0,1.23900004]
[1765848097200,0.12283,85989.0,85988.0,1.1556109]
[1765848097401,0.12283,85989.0,85988.0,1.23899512]
[1765848097698,0.12283,85989.0,85988.0,1.1556109]
[1765848097900,0.0938,85989.0,85988.0,1.1556109]
[1765848100006,0.0938,85989.0,85981.0,0.02877]
[1765848100007,0.0694617,85982.0,85981.0,0.02877]
[1765848100301,0.05783,85981.0,85980.0,0.00017454]
[1765848100800,0.05783,85981.0,85980.0,0.02894454]
[1765848101699,0.05783,85981.0,85980.0,0.05667454]
[1765848102403,0.05883,85981.0,85980.0,0.05667454]
[1765848102604,0.05983,85981.0,85980.0,0.05667454]
[1765848107002,0.002,85981.0,85980.0,0.15759213]
[1765848107199,0.06,85989.0,85988.0,0.0681309]
[1765848107399,0.3608,86009.0,85996.0,0.0681298]
[1765848107609,0.0288,86009.0,86008.0,0.0681282]
[1765848108111,0.53937936,86020.0,86017.0,0.0565]
[1765848108406,0.3608,86020.0,86017.0,0.78402]
[1765848108814,0.00017443,86026.0,86017.0,0.78402]
[1765848109410,0.06015511,86018.0,86017.0,0.78402]
[1765848110210,0.06015511,86018.0,86017.0,0.0565]
[1765848110797,0.06015511,86018.0,86002.0,0.10434948]
[1765848110798,0.05783,86010.0,86009.0,0.08357244]
[1765848111112,0.05783,86010.0,86009.0,0.00017443]
[1765848111608,0.05783,86010.0,86009.0,0.05667443]
[1765848111808,0.06815511,86018.0,86017.0,0.0565]
[1765848112108,0.06415511,86018.0,86017.0,0.11903434]
[1765848112314,0.07454,86016.0,86015.0,0.06253434]
[1765848113307,0.05783,86016.0,86015.0,0.11903434]
[1765848113606,0.03112511,86018.0,86017.0,0.0565]
[1765848113806,0.06015511,86018.0,86017.0,0.11902434]
[1765848114006,0.06415511,86018.0,86017.0,0.11902434]
[1765848114208,0.06415511,86018.0,86017.0,0.0565]
[1765848114512,0.03512511,86018.0,86017.0,0.0565]
[1765848114712,0.06415511,86018.0,86017.0,0.0565]
[1765848114913,0.06415511,86018.0,86017.0,0.11902393]
[1765848115513,0.06815511,86018.0,86017.0,0.0565]
[1765848116416,0.01032511,86018.0,86017.0,0.0565]
[1765848116612,0.03912511,86018.0,86017.0,0.0565]
[1765848116816,0.06815511,86018.0,86017.0,0.0565]
[1765848117014,0.03912511,86018.0,86017.0,0.0565]
[1765848117214,0.03912511,86018.0,86017.0,0.13989801]
[1765848117522,0.06815511,86018.0,86017.0,0.0565]
[1765848118412,0.01032511,86018.0,86017.0,0.0565]
[1765848119008,0.00017443,86026.0,86025.0,0.0681259]
[1765848119206,0.05800443,86026.0,86025.0,1.1564059]
[1765848120406,0.05800443,86026.0,86025.0,0.7956059]
[1765848120607,0.05900443,86026.0,86025.0,0.7956059]
[1765848121216,0.05900443,86026.0,86025.0,0.0681259]
[1765848121413,0.05900443,86026.0,86025.0,0.7957659]
[1765848121819,0.00117443,86026.0,86025.0,0.7957259]
[1765848122211,0.3608,86057.0,86046.0,0.069223]
[1765848122411,0.41878,86057.0,86056.0,0.0692217]
[1765848122818,0.05798,86057.0,86056.0,0.0692217]
[1765848123313,0.05798,86057.0,86056.0,0.0576]
[1765848123711,0.05798,86057.0,86056.0,0.0692217]
[1765848124313,0.05898,86057.0,86056.0,0.0692217]
[1765848124708,0.001,86057.0,86056.0,0.0692217]
[1765848124908,0.05898,86057.0,86056.0,0.0692217]
[1765848125717,0.03034,86057.0,86056.0,0.0692217]
[1765848125916,0.001,86057.0,86056.0,0.0692217]
[1765848126224,0.05898,86057.0,86056.0,0.0692217]
[1765848126529,0.02934,86057.0,86056.0,0.0692217]
[1765848127322,0.4293954,86065.0,86064.0,0.0576]
[1765848127712,0.0685954,86065.0,86064.0,0.0576]
[1765848128024,0.0001154,86065.0,86064.0,0.0576]
[1765848129531,0.0011154,86065.0,86064.0,0.0576]
[1765848130127,0.01745,86107.0,86087.0,0.0692175]
[1765848130128,0.04679,86088.0,86087.0,0.0692175]
[1765848130322,0.07543,86088.0,86087.0,0.0692175]
[1765848130721,0.07543,86088.0,86087.0,0.0576]
[1765848131018,0.07543,86088.0,86087.0,0.0692175]
[1765848131220,0.41878,86092.0,86091.0,0.069217]
[1765848131414,0.04679,86096.0,86095.0,0.0692164]
[1765848131617,0.01745,86100.0,86097.0,0.0576]
[1765848132016,0.3608,86102.0,86097.0,0.0576]
[1765848132618,0.3608,86102.0,86097.0,0.78576]
[1765848132813,0.01745,86107.0,86097.0,0.78576]
[1765848133223,0.06030295,86098.0,86097.0,0.78576]
[1765848133826,0.06030295,86098.0,86097.0,0.0576]
[1765848135824,0.07543,86096.0,86095.0,1.5]
[1765848136729,0.05798,86093.0,86092.0,0.72788]
[1765848137329,0.05798,86093.0,86092.0,2.28548]
[1765848137522,0.00232295,86098.0,86097.0,0.0692161]
[1765848138629,0.06030295,86098.0,86097.0,0.0692161]
[1765848138829,0.06030295,86098.0,86097.0,0.0576]
[1765848139731,0.05798,86095.0,86094.0,0.3608]
[1765848140836,0.05798,86092.0,86091.0,0.0692168]
[1765848141035,0.05798,86092.0,86091.0,1.9929768]
[1765848141829,0.05798,86092.0,86091.0,1.98136]
[1765848142540,0.05798,86092.0,86091.0,2.06136]
[1765848142737,0.07543,86096.0,86095.0,0.0576]
[1765848143034,0.07543,86096.0,86091.0,2.00376]
[1765848143035,0.06030295,86098.0,86097.0,0.0692161]
[1765848144940,0.14030295,86098.0,86097.0,0.0692161]
[1765848146043,0.14030295,86098.0,86097.0,0.0576]
[1765848146944,0.14030295,86098.0,86097.0,0.02783]
[1765848147136,0.0695968,86092.0,86091.0,0.08]
[1765848147335,0.4303968,86092.0,86091.0,0.08]
[1765848147935,0.4303968,86092.0,86091.0,0.10783]
[1765848148653,0.4303968,86092.0,86091.0,0.1376]
[1765848150540,0.4303968,86092.0,86091.0,0.10783]
[1765848150744,0.0695968,86092.0,86091.0,0.10783]
[1765848151043,0.0695968,86092.0,86091.0,0.1376]
[1765848152630,0.05798,86092.0,86091.0,0.1376]
[1765848153334,0.05798,86092.0,86091.0,0.08]
[1765848154646,0.0695968,86092.0,86091.0,0.13707]
[1765848155644,0.05798,86092.0,86091.0,0.148687]
[1765848155949,0.0392567,86093.0,86092.0,0.05707]
[1765848156147,0.4000564,86096.0,86095.0,0.0686864]
[1765848156542,0.4276264,86096.0,86095.0,0.0686864]
[1765848156740,0.4276264,86096.0,86095.0,0.05707]
[1765848157345,0.0668268,86092.0,86091.0,0.13707]
[1765848158049,0.0668268,86092.0,86091.0,0.10787]
[1765848158350,0.0668268,86092.0,86091.0,0.08]
[1765848158742,0.0668268,86092.0,86091.0,0.10787]
[1765848159252,0.0668268,86092.0,86091.0,0.08]
[1765848159548,0.09245097,86092.0,86091.0,0.08]
[1765848162748,0.09245097,86092.0,86091.0,0.03499]
[1765848164957,0.09245097,86092.0,86091.0,0.00944212]
[1765848165152,0.0668284,86080.0,86079.0,0.00017432]
[1765848165348,0.4276284,86080.0,86079.0,0.00017432]
[1765848166049,0.0668295,86072.0,86071.0,0.09029777]
[1765848166251,0.4276295,86072.0,86071.0,0.02787]
[1765848166451,0.4276295,86072.0,86071.0,0.05707]
[1765848167248,0.4276295,86072.0,86071.0,0.05807]
[1765848168659,0.4445995,86072.0,86071.0,0.02887]
[1765848168850,0.4445995,86072.0,86071.0,0.05707]
[1765848169051,0.4276295,86072.0,86071.0,0.05707]
[1765848173055,0.0668295,86072.0,86071.0,0.05707]
[1765848173446,0.05521,86064.0,86063.0,0.00017422]
[1765848173650,0.3608,86074.0,86063.0,0.00017422]
[1765848173651,0.3608,86067.0,86066.0,0.05707]
[1765848175160,0.3608,86067.0,86066.0,0.11949777]
[1765848175351,0.3608,86067.0,86066.0,0.05707]
[1765848175860,0.3608,86067.0,86066.0,0.0686903]
[1765848176463,0.0116193,86074.0,86073.0,0.05707]
[1765848176658,0.06700238,86080.0,86079.0,0.05707]
[1765848181657,0.00017398,86080.0,86079.0,0.05707]
[1765848182461,0.6391734,86100.0,86079.0,0.05707]
[1765848182462,0.08232295,86098.0,86079.0,0.0292]
[1765848182662,0.0116167,86093.0,86090.0,0.0677571]
[1765848186162,0.3883,86091.0,86090.0,0.0677571]
[1765848186568,0.08232295,86098.0,86097.0,0.0677561]
[1765848186767,0.10982295,86098.0,86097.0,0.0677561]
[1765848187870,0.13943295,86098.0,86097.0,0.0677561]
[1765848188753,0.10982295,86098.0,86097.0,0.0677561]
[1765848188956,0.08232295,86098.0,86097.0,0.0677561]
[1765848189863,0.10982295,86098.0,86097.0,0.0677561]
[1765848190067,0.13943295,86098.0,86097.0,0.05614]
[1765848191458,0.13943295,86098.0,86097.0,0.0677561]
[1765848192575,0.08232295,86098.0,86097.0,0.0677561]
[1765848192766,0.10982295,86098.0,86097.0,0.0677561]
[1765848193071,0.13943295,86098.0,86097.0,0.0677561]
[1765848193873,0.13943295,86098.0,86097.0,0.05614]
[1765848194872,0.068727,86091.0,86090.0,0.05614]
[1765848195071,0.05711,86083.0,86082.0,0.04053232]
[1765848195273,0.05711,86083.0,86082.0,0.06793232]
[1765848196366,0.37876,86093.0,86092.0,0.05614]
[1765848196367,0.4295267,86093.0,86092.0,0.05614]
[1765848196570,0.4295267,86093.0,86088.0,0.11860372]
[1765848196571,0.0687272,86089.0,86088.0,0.11860372]
[1765848196770,0.05711,86088.0,86087.0,0.06246372]
[1765848196964,0.05711,86088.0,86087.0,0.09120372]
[1765848197273,0.05711,86088.0,86087.0,0.09121155]
[1765848197472,0.05711,86088.0,86087.0,0.11861155]
[1765848197966,0.05711,86088.0,86087.0,0.06247155]
[1765848198366,0.07408,86086.0,86085.0,0.06247155]
[1765848198573,0.07408,86086.0,86082.0,0.00017422]
[1765848198574,0.068728,86083.0,86082.0,0.00017422]
[1765848199569,0.068728,86083.0,86079.0,0.06247155]
[1765848199570,0.041228,86083.0,86079.0,0.06247155]
[1765848199769,0.0391199,86069.0,86068.0,0.06247155]
[1765848199978,0.4295299,86069.0,86068.0,0.06247155]
[1765848200174,0.05711,86068.0,86067.0,0.09121155]
[1765848200675,0.05711,86068.0,86067.0,0.05614]
[1765848209388,0.05711,86068.0,86067.0,0.11861496]
[1765848209679,0.07507,86064.0,86063.0,0.06247496]
[1765848209882,0.0687311,86060.0,86059.0,0.00017422]
[1765848210871,0.0687311,86060.0,86059.0,0.05631422]
[1765848212187,0.0116208,86063.0,86062.0,0.05831]
[1765848212589,0.0116208,86063.0,86062.0,0.12078496]
[1765848212788,0.38953,86065.0,86064.0,0.05831]
[1765848212981,0.3608,86065.0,86064.0,0.05831]
[1765848213180,0.38953,86065.0,86064.0,0.05831]
[1765848214176,0.41693,86065.0,86064.0,0.05831]
[1765848214684,0.3608,86065.0,86064.0,0.05831]
[1765848215084,0.38953,86065.0,86064.0,0.05831]
[1765848215589,0.41693,86065.0,86064.0,0.05831]
[1765848216685,0.42363,86065.0,86064.0,0.05831]
[1765848216891,0.42363,86065.0,86064.0,0.09240966]
[1765848217191,0.42363,86065.0,86064.0,0.02998]
[1765848217574,0.05613,86065.0,86064.0,0.05831]
[1765848222984,0.05613,86065.0,86064.0,0.07454]
[1765848223491,0.59523128,86074.0,86073.0,0.05831]
[1765848223690,0.4285493,86074.0,86073.0,0.05831]
[1765848224400,0.0677498,86070.0,86069.0,0.0699298]
[1765848224894,0.0677498,86070.0,86069.0,0.05831]
[1765848225199,0.0750598,86070.0,86069.0,0.14171747]
[1765848225589,0.0750598,86070.0,86069.0,0.05831]
[1765848225788,0.0750598,86070.0,86065.0,0.11338747]
[1765848225789,0.0677503,86066.0,86065.0,0.11338747]
[1765848225999,0.05613,86065.0,86064.0,0.08340747]
[1765848226296,0.0677511,86060.0,86059.0,0.05848422]
[1765848226991,0.0677511,86060.0,86059.0,0.11366563]
[1765848227197,0.0677511,86060.0,86059.0,0.03015422]
[1765848227602,0.0677511,86060.0,86059.0,0.11369725]
[1765848227803,0.0677511,86060.0,86059.0,0.03015422]
[1765848228402,0.0677511,86060.0,86059.0,0.14202725]
[1765848230300,0.0677511,86060.0,86059.0,0.05848422]
[1765848230501,0.0677511,86060.0,86059.0,0.14202725]
[1765848232207,0.0677511,86060.0,86059.0,0.14205726]
[1765848232808,0.0677511,86060.0,86059.0,0.05848422]
[1765848235119,0.02873,86060.0,86059.0,0.05848422]
[1765848235412,0.0677495,86072.0,86071.0,0.0699294]
[1765848239713,0.05613,86072.0,86071.0,0.0699294]
[1765848240911,0.41693,86072.0,86071.0,0.02998]
[1765848241115,0.41693,86072.0,86064.0,0.48159948]
[1765848241116,0.05613,86065.0,86064.0,0.10444948]
[1765848241300,0.067751,86061.0,86054.0,0.14657969]
[1765848241505,0.05613,86060.0,86058.0,0.08356239]
[1765848241713,0.05613,86060.0,86057.0,0.08356239]
[1765848242408,0.05613,86060.0,86059.0,0.03015422]
[1765848242809,0.05613,86060.0,86059.0,0.00017422]
[1765848243314,0.05613,86060.0,86059.0,0.00117422]
[1765848243907,0.05613,86060.0,86059.0,0.00217422]
[1765848244808,0.05613,86060.0,86059.0,0.00017422]
[1765848245211,0.0116226,86049.0,86048.0,0.08356239]
[1765848245517,0.05571,86045.0,86043.0,0.08356239]
[1765848245720,0.05571,86044.0,86043.0,0.08356239]
[1765848246215,0.0673334,86043.0,86042.0,0.08356239]
[1765848246517,0.0673334,86043.0,86042.0,0.14337239]
[1765848247103,0.0663334,86043.0,86042.0,0.14337239]
[1765848247304,0.0663334,86043.0,86042.0,0.05981]
[1765848247819,0.0663334,86043.0,86042.0,0.07269094]
[1765848248121,0.0663334,86043.0,86042.0,0.01188094]
[1765848248319,0.0663334,86043.0,86042.0,0.002]
[1765848248620,0.0663334,86043.0,86042.0,0.06181]
[1765848249117,0.0663334,86043.0,86042.0,0.0736886]
[1765848256524,0.0650834,86043.0,86042.0,0.0736886]
[1765848257123,0.0650834,86043.0,86035.0,0.06275425]
[1765848257124,0.0116242,86037.0,86035.0,0.06275425]
[1765848257314,0.0673359,86025.0,86024.0,0.04144758]
[1765848257518,0.0673359,86025.0,86024.0,0.05981]
[1765848257829,0.0673359,86025.0,86024.0,0.07130662]
[1765848259429,0.0683359,86025.0,86024.0,0.07130662]
[1765848260419,0.0693359,86025.0,86024.0,0.07130662]
[1765848261522,0.002,86025.0,86024.0,0.07130662]
[1765848261723,0.02998,86025.0,86024.0,0.07130662]
[1765848262421,0.05771,86025.0,86024.0,0.07130662]
[1765848262833,0.05671,86025.0,86024.0,0.07130662]
[1765848263437,0.05571,86025.0,86024.0,0.07130662]
[1765848264033,0.05671,86025.0,86024.0,0.07130662]
[1765848264221,0.05771,86025.0,86024.0,0.07130662]
[1765848265628,0.05671,86025.0,86024.0,0.07130662]
[1765848265935,0.05771,86025.0,86024.0,0.07130662]
[1765848266324,0.02998,86025.0,86024.0,0.08293262]
[1765848266524,0.05771,86025.0,86024.0,0.08293262]
[1765848267228,0.05671,86025.0,86024.0,0.08293262]
[1765848267733,0.05671,86025.0,86024.0,0.07130662]
[1765848270038,0.05571,86025.0,86024.0,0.07130662]
[1765848270335,0.05671,86025.0,86024.0,0.07130662]
[1765848270523,0.05671,86025.0,86024.0,0.04145662]
[1765848270929,0.05671,86025.0,86024.0,0.01149662]
[1765848271128,0.05671,86025.0,86024.0,0.05981]
[1765848271322,0.05671,86025.0,86024.0,0.07119803]
[1765848273933,0.05671,86025.0,86024.0,0.01138803]
[1765848274239,0.0677064,86021.0,86020.0,0.13838239]
[1765848274737,0.0677064,86021.0,86020.0,0.05482]
[1765848275153,0.37816,86028.0,86020.0,0.05482]